Cogmind - Beta 17.1 @@@ ROGUE MODE // 2026.08.30 @ 15:24:32 Player: UnderDoug Result: Destroyed by B-75 Beast with Heavy Plasma Cannon Performance ------------- Evolutions (3) 1500 Regions Visited (6) 1200 Robots Destroyed (32) 160 Value Destroyed (778) 778 Prototype IDs (11) 220 Alien Tech Used (0) 0 Bonus (60) 60 TOTAL SCORE: 3918 Bonus ------- Follower Combat Kills 60 Cogmind --------- Core Integrity 0/700 Matter 300/300 Energy 100/100 System Corruption 3% Temperature Cool (14) Movement Flying (55) Location -7/Lower Caves Parts ------- > --- POWER (3) -------- (None) > --- PROPULSION (4) --- Makeshift Flight Unit > --- UTILITY (4) ------ (None) > --- WEAPON (2) ------- Barrage Gun > --- INVENTORY (5) ---- ECM Suite Autogun Improved Datajack Remote Datajack Mining Claw Peak State ------------ > --- POWER ------------ Light Nuclear Core Light Nuclear Core Light Angular Momentum Engine > --- PROPULSION ------- Improved Treads Improved Treads Improved Treads > --- UTILITY ---------- Scrap Suit Trap Scanner Signal Interpreter > --- WEAPON ----------- Particle Gun Katana > --- INVENTORY -------- VSS Leg VSS Leg VSS Leg ECM Suite Remote Datajack [Rating: 35] Favorites ----------- Power Light Ion Engine Engine Light Ion Engine Power Core Light Nuclear Core Propulsion Flight Unit Treads Light Treads Leg VSS Leg Flight Unit Flight Unit Utility Signal Interpreter Device Trap Scanner Storage Small Storage Unit Processor Signal Interpreter Weapon Light Assault Rifle Energy Gun Precision Shock Rifle Ballistic Gun Light Assault Rifle Launcher Grenade Launcher Special Weapon Remote Datajack Slashing Weapon Katana Special Melee Weapon Improved Datajack Build | -11 -10 -9 -9 -8 -7 -7 ------- Run | Yrd Mat Mat Min Mat Fac Low Slots Evolved 6 | . . 2 . 2 2 . Power 2 | . . 1 . 1 . . Propulsion 2 | . . 1 . . 1 . Utility 2 | . . . . 1 1 . Weapon . | . . . . . . . Parts Attached 57 | 7 3 15 5 8 13 6 Power 13 | 1 1 4 1 1 4 1 Engine 9 | 1 1 4 1 1 1 . Core 4 | . . . . . 3 1 Reactor . | . . . . . . . Propulsion 24 | 2 . 7 2 5 7 1 Treads 5 | 2 . . . . 3 . Leg 7 | . . 3 . . 4 . Wheel . | . . . . . . . Hover . | . . . . . . . Flight 12 | . . 4 2 5 . 1 Utility 7 | 1 1 2 . . 1 2 Device 4 | . . 1 . . 1 2 Storage 2 | 1 1 . . . . . Processor 1 | . . 1 . . . . Hackware . | . . . . . . . Protection . | . . . . . . . Artifact . | . . . . . . . Weapon 13 | 3 1 2 2 2 1 2 Energy Gun 2 | . . . . 1 1 . Energy Cannon . | . . . . . . . Ballistic Gun 6 | 3 . . 2 . . 1 Ballistic Cannon . | . . . . . . . Launcher 1 | . 1 . . . . . Special Weapon 1 | . . . . 1 . . Impact Weapon . | . . . . . . . Slashing Weapon 2 | . . 2 . . . . Piercing Weapon . | . . . . . . . Special Melee Weapon 1 | . . . . . . 1 Unidentified Prototypes 2 | . . . . 1 1 . Parts Lost 27 | . . 2 1 9 12 3 Power 9 | . . 1 . 2 5 1 Propulsion 13 | . . . 1 6 4 2 Utility 1 | . . . . . 1 . Weapon 4 | . . 1 . 1 2 . Highest Loss Streak 8 | . . 1 1 7 8 5 To Critical Strikes 1 | . . . . 1 . . Average Backups 4 | 3 7 4 3 3 3 3 Power . | . 1 . . . . . Propulsion 1 | 2 3 1 1 . 2 . Utility . | . . . 1 1 . 1 Weapon 1 | . 2 1 . 1 . . Tool/Special . | . . . . . . . Unused Backups 6 | . 4 . . . . 2 Power . | . . . . . . . Propulsion 4 | . 4 . . . . . Utility . | . . . . . . . Weapon 2 | . . . . . . 2 Tool/Special . | . . . . . . . Average Slot Usage (%) 76 | . 97 92 99 61 64 12 Engine 12 | . 14 21 22 11 4 . Core 1 | . . . . . 5 1 Treads 11 | . 28 4 . . 15 . Leg 2 | . . 10 . . 5 . Flight 9 | . . 16 32 23 . 2 Device 5 | . . 3 11 9 12 2 Storage 9 | . 25 14 . . . . Processor 4 | . . 5 11 9 6 . Ballistic Gun 8 | . 14 11 11 5 . 5 Launcher 4 | . 13 1 . . . . Slashing Weapon 3 | . . 5 11 1 5 . Peak Build Rating 35 | 6 7 13 14 18 35 12 Average Rating 11 | 4 6 10 13 11 25 4 On Entrance 7 | . 6 7 13 14 9 6 Avg Prop Armor Cover (%) . | . . . . . . . Naked Turns 74 | . . . . . . 74 Heaviest Build 30 | 11 13 19 11 11 30 9 Greatest Support 69 | 40 40 40 12 12 69 24 Greatest Overweight (x) 5 | . . 2 . 1 5 2 Average Overweight (x) . | . . . . . . . Largest Inventory Capacity 8 | 8 8 8 5 5 5 5 Average Capacity 6 | 7 8 6 5 5 5 5 Most Carried 8 | 6 8 7 5 5 5 5 Average Carried 5 | 3 7 4 4 4 4 3 Final Capacity 8 | 8 8 5 5 5 5 5 Final Carried 7 | 6 7 3 5 5 2 5 Scrap Suit Usage (%) 13 | . . . . . 73 . Class Distribution -------------------- 70% | Mutant 29% | Scavenger-Mutant Dominant Class ---------------- Mutant | -10/Materials Scavenger-Mutant | -9/Materials Scavenger-Mutant | -9/Mines Scavenger-Mutant | -8/Materials Mutant | -7/Factory Mutant | -7/Lower Caves Resources | -11 -10 -9 -9 -8 -7 -7 ----------- Run | Yrd Mat Mat Min Mat Fac Low Matter Collected 1077 | 169 158 155 287 40 196 72 Remotely . | . . . . . . . Salvage Created 784 | . 204 178 59 40 280 23 Parts 54 | . 22 16 . 6 9 1 Haulers Intercepted 1 | . . 1 . . . . Recyclers Shooed . | . . . . . . . Parts Field Recycled . | . . . . . . . Retrieved Matter . | . . . . . . . Parts Self-Destructed 5 | . . . . . . 5 Prevented . | . . . . . . . Parts Restored . | . . . . . . . Kills | -11 -10 -9 -9 -8 -7 -7 ------- Run | Yrd Mat Mat Min Mat Fac Low Combat Hostiles Destroyed 29 | . 12 6 2 3 5 1 Melee 3 | . . . . . 3 . Guns 14 | . 1 5 2 3 2 1 AOE 12 | . 11 1 . . . . Classes Destroyed 4 | . 3 1 . . . . Hauler 1 | . . 1 . . . . Watcher 2 | . 2 . . . . . Swarmer 15 | . 6 4 1 3 . 1 Grunt 14 | . 6 2 1 . 5 . Best Kill Streak 6 | . 6 3 1 3 2 1 Combat Bots Only 5 | . 5 3 1 3 2 1 Max Kills in Single Turn 3 | . 3 1 1 1 1 1 Gunslinging . | . . . . . . . Exploded 3 | . 3 1 . . . . Melee 1 | . . . . . 1 . Uniques/NPCs Destroyed . | . . . . . . . Combat | -11 -10 -9 -9 -8 -7 -7 -------- Run | Yrd Mat Mat Min Mat Fac Low Hostile Shots Fired 440 | . 34 61 21 113 137 74 Missed 177 | . 7 20 8 63 46 33 Hits 263 | . 27 41 13 50 91 41 Melee 14 | . . . . . 14 . Projectile 249 | . 27 41 13 50 77 41 Critical Strikes 16 | . . 3 . 3 10 . Damage Taken 3661 | . 286 389 114 465 1721 686 Core 1040 | . 27 66 24 201 204 518 Absorbed by Shields . | . . . . . . . Core Remaining (%) 82 | 100 89 . 77 63 . . Volleys Fired 108 | . 20 28 26 18 13 3 Largest 2 | . 2 2 1 1 1 1 Hottest 65 | . 50 50 20 20 65 28 Shots Fired 127 | . 36 31 26 18 13 3 Gun 106 | . 20 28 26 16 13 3 Cannon . | . . . . . . . Launcher 19 | . 16 3 . . . . Special 2 | . . . . 2 . . Kinetic 93 | . 20 28 26 16 . 3 Thermal 2 | . . . . . 2 . Explosive 19 | . 16 3 . . . . Electromagnetic 11 | . . . . . 11 . Robot Hit Streak 16 | . 6 9 7 5 16 2 Robot Miss Streak 5 | . 3 5 2 2 1 2 Penetration Max . | . . . . . . . Secondary Targets . | . . . . . . . Shots Hit Robots 95 | . 20 16 18 9 30 2 Core Hits 57 | . 22 10 8 4 12 1 Critical Kills . | . . . . . . . Critical Parts Destroyed . | . . . . . . . Critical Strikes 2 | . . . . . 2 . Sever 2 | . . . . . 2 . Melee Attacks 37 | . . 6 . . 31 . Impact . | . . . . . . . Slashing 37 | . . 6 . . 31 . Piercing . | . . . . . . . Sneak Attacks 2 | . . 2 . . . . Combat Hostiles . | . . . . . . . Follow-up Attacks . | . . . . . . . Damage Inflicted 2164 | . 814 337 145 70 761 37 Guns 647 | . 80 92 145 70 223 37 Cannons . | . . . . . . . Explosions 850 | . 734 116 . . . . Melee 655 | . . 129 . . 526 . Ramming 12 | . . . . . 12 . Kinetic 424 | . 80 92 145 70 . 37 Thermal 17 | . . . . . 17 . Explosive 850 | . 734 116 . . . . Electromagnetic 206 | . . . . . 206 . Impact . | . . . . . . . Slashing 655 | . . 129 . . 526 . Piercing . | . . . . . . . Highest Corruption 3 | . . . . . 3 3 Average Corruption 2 | . . . . . 1 3 Corruption Purged . | . . . . . . . Corruption Blocked . | . . . . . . . Effects 9 | . . . . . 3 6 Message Errors 3 | . . . . . 1 2 Heat Flow Errors 3 | . . . . . 1 2 Data Loss (minor) 2 | . . . . . 1 1 Data Loss (major) 1 | . . . . . . 1 Overload Shots . | . . . . . . . Overflow Damage 43 | . . 43 . . . . Projectiles . | . . . . . . . Explosions . | . . . . . . . Melee 43 | . . 43 . . . . Knockbacks . | . . . . . . . Impact . | . . . . . . . Kinetic . | . . . . . . . Secondary . | . . . . . . . Self-Inflicted Damage 32 | . 32 . . . . . Shots 2 | . 2 . . . . . Rammed . | . . . . . . . Targets Rammed 4 | . . . . . 4 . Kicked 4 | . . . . . 4 . Crushed . | . . . . . . . Highest Temperature 204 | . 35 27 11 8 204 138 Average Temperature 19 | . 12 8 6 3 37 74 Received Heat Transfer 963 | . 69 93 24 90 630 57 Siege Activations . | . . . . . . . Martial Activations . | . . . . . . . Shielding Activations . | . . . . . . . Robots Disrupted . | . . . . . . . Combat Hostiles . | . . . . . . . Robots Corrupted . | . . . . . . . Combat Hostiles . | . . . . . . . Parts Fried 1 | . . . . . 1 . Impact Corruptions . | . . . . . . . Robots Melted . | . . . . . . . Combat Hostiles . | . . . . . . . Parts Melted 1 | . . . 1 . . . Heat Transferred 37 | . . . . . 37 . Parts Sabotaged . | . . . . . . . Parts Stolen . | . . . . . . . Parts Stripped . | . . . . . . . Power Chain Reactions . | . . . . . . . Alert | -11 -10 -9 -9 -8 -7 -7 ------- Run | Yrd Mat Mat Min Mat Fac Low Maximum Alert Level . | . . . . . . . Low Security (%) 100 | 100 100 100 100 100 100 . Level 1 . | . . . . . . . Level 2 . | . . . . . . . Level 3 . | . . . . . . . Level 4 . | . . . . . . . Level 5 . | . . . . . . . High Security . | . . . . . . . Max Security . | . . . . . . . Peak Influence 197 | . 197 123 68 60 40 . Initial 47 | . . 4 47 . 18 . Average 41 | . 75 61 21 20 9 . Influence Increases 1320 | . 428 283 156 208 150 95 Destroy 0b10 Robot/C 620 | . 240 120 80 60 100 20 Destroy 0b10 Robot/NC 20 | . 10 5 5 . . . Destroy Leader 116 | . 54 12 20 10 20 . Allied During Kill 6 | . . . 6 . . . Successful Hack 50 | . 22 10 . 18 . . Disable Machine 30 | . 30 . . . . . Destroy Structure 88 | . 72 16 . . . . Partial Spotted 60 | . . 30 . 30 . . Lose Combat Pursuer 330 | . . 90 45 90 30 75 Influence Decreases 1310 | . 416 172 279 168 186 89 Entered New Map 109 | . . 8 76 . 22 3 Time Decay 860 | . 266 144 168 93 114 75 Lost Part 166 | . . 20 10 75 50 11 Lost Ally 25 | . . . 25 . . . Purge Threat 150 | . 150 . . . . . Squads Dispatched 7 | . 2 1 . 1 3 . Investigation 1 | . 1 . . . . . Extermination 1 | . . . . . 1 . Reinforcement 4 | . 1 1 . 1 1 . Assault 1 | . . . . . 1 . Garrison . | . . . . . . . Intercept . | . . . . . . . Searches Triggered . | . . . . . . . Construction Impeded . | . . . . . . . Haulers Reinforced . | . . . . . . . Active Scanning Responses . | . . . . . . . Cargo Convoy Interrupts . | . . . . . . . Stealth | -11 -10 -9 -9 -8 -7 -7 --------- Run | Yrd Mat Mat Min Mat Fac Low Distress Signals 3 | . . 1 . 2 . . Communications Jammed . | . . . . . . . Distress Signals . | . . . . . . . Times Spotted 95 | . 16 17 15 24 14 9 Peak Tracking Total 12 | . 4 6 4 12 5 3 Tactical Retreats 12 | . . 4 1 3 1 3 Traps | -11 -10 -9 -9 -8 -7 -7 ------- Run | Yrd Mat Mat Min Mat Fac Low Traps Triggered . | . . . . . . . Indirectly . | . . . . . . . Trap Hack Attempts . | . . . . . . . Triggered . | . . . . . . . Disarmed . | . . . . . . . Reprogrammed . | . . . . . . . Reused . | . . . . . . . Traps Extracted . | . . . . . . . Installed . | . . . . . . . Triggered . | . . . . . . . Machines | -11 -10 -9 -9 -8 -7 -7 ---------- Run | Yrd Mat Mat Min Mat Fac Low Machines Disabled 2 | . 2 . . . . . Max in Single Turn 1 | . 1 . . . . . Machines Repaired . | . . . . . . . Machines Dismantled . | . . . . . . . Machines Sabotaged . | . . . . . . . Overloaded Fab Kills . | . . . . . . . Hacking | -11 -10 -9 -9 -8 -7 -7 --------- Run | Yrd Mat Mat Min Mat Fac Low Machines Accessed 11 | . 6 3 . 2 . . Terminals 10 | . 5 3 . 2 . . Fabricators . | . . . . . . . Repair Stations 1 | . 1 . . . . . Recycling Units . | . . . . . . . Scanalyzers . | . . . . . . . Garrison Access . | . . . . . . . Total Hacks 32 | . 20 8 . 4 . . Successful 20 | . 11 6 . 3 . . Failed 12 | . 9 2 . 1 . . Catastrophic 2 | . 1 1 . . . . Database Lockouts . | . . . . . . . Manual . | . . . . . . . Terminals 28 | . 16 8 . 4 . . Fabricators . | . . . . . . . Repair Stations 4 | . 4 . . . . . Recycling Units . | . . . . . . . Scanalyzers . | . . . . . . . Garrison Access . | . . . . . . . Terminal Hacks 19 | . 10 6 . 3 . . Robot Analysis 2 | . . 1 . 1 . . Prototype ID Bank 4 | . 1 2 . 1 . . Emergency Access Points 3 | . 3 . . . . . Unreport Threat 1 | . 1 . . . . . Locate Traps 3 | . 2 . . 1 . . Surveillance Status 1 | . 1 . . . . . Registered Components 1 | . . 1 . . . . Zone Layout 4 | . 2 2 . . . . Fabricator Hacks . | . . . . . . . Repair Station Hacks 1 | . 1 . . . . . Scan Component 1 | . 1 . . . . . Recycling Unit Hacks . | . . . . . . . Scanalyzer . | . . . . . . . Garrison Access Hacks . | . . . . . . . Unauthorized Hacks . | . . . . . . . Terminals . | . . . . . . . Fabricators . | . . . . . . . Repair Stations . | . . . . . . . Recycling Units . | . . . . . . . Scanalyzers . | . . . . . . . Garrison Access . | . . . . . . . Data Cores Recovered . | . . . . . . . Used . | . . . . . . . Hacking Detections 9 | . 6 2 . 1 . . Full Trace Events 1 | . 1 . . . . . Feedback Events . | . . . . . . . Feedback Blocked . | . . . . . . . Robot Schematics Acquired . | . . . . . . . Robots Built . | . . . . . . . Authchips . | . . . . . . . Time . | . . . . . . . Total Robot Build Rating . | . . . . . . . Part Schematics Acquired . | . . . . . . . Parts Built . | . . . . . . . Authchips . | . . . . . . . Time . | . . . . . . . Total Part Build Rating . | . . . . . . . Part Studies Acquired . | . . . . . . . Parts Repaired . | . . . . . . . Time . | . . . . . . . Parts Recycled . | . . . . . . . Recycled Matter . | . . . . . . . Retrieved Matter . | . . . . . . . Retrieved Components . | . . . . . . . Parts Scanalyzed . | . . . . . . . Part Schematics Acquired . | . . . . . . . Parts Damaged . | . . . . . . . Bothacking | -11 -10 -9 -9 -8 -7 -7 ------------ Run | Yrd Mat Mat Min Mat Fac Low Used RIF Installer . | . . . . . . . Robots Hacked 1 | . . . . 1 . . Non-combat 1 | . . . . 1 . . Combat . | . . . . . . . Robot Hacks Applied 1 | . . . . 1 . . parse_system 1 | . . . . 1 . . Relay Couplers Released . | . . . . . . . Fabnet Peak Effective % . | . . . . . . . Robots Rewired . | . . . . . . . Allies Hacked . | . . . . . . . Hacks Repelled . | . . . . . . . Allies | -11 -10 -9 -9 -8 -7 -7 -------- Run | Yrd Mat Mat Min Mat Fac Low Total Allies 2 | . . . 2 . . . Largest Group 2 | . . . 2 . . . Highest-Rated Group 40 | . . . 40 . . . Highest-Rated Ally 31 | . . . 31 . . . Total Orders . | . . . . . . . Ally Attacks 14 | . . . 14 . . . Total Damage 253 | . . . 253 . . . Kills 3 | . . . 3 . . . Allies Corrupted . | . . . . . . . Allies Melted . | . . . . . . . Intel | -11 -10 -9 -9 -8 -7 -7 ------- Run | Yrd Mat Mat Min Mat Fac Low Active Infowar (turns) 1266 | . . 86 443 243 492 2 Traps 1264 | . . 86 443 243 492 . ECM 2 | . . . . . . 2 Robot Analysis Total 2 | . . 1 . 1 . . Derelict Logs Recovered 1 | . . . 1 . . . Drone Launches . | . . . . . . . Drone Recoveries . | . . . . . . . Exploration | -11 -10 -9 -9 -8 -7 -7 ------------- Run | Yrd Mat Mat Min Mat Fac Low Turns Passed 2761 | 77 813 319 443 243 502 364 Spaces Moved 3115 | 40 466 414 948 499 270 478 Core 277 | 2 . . . . 3 272 Treads 677 | 38 466 23 . . 150 . Legs 169 | . . 48 . . 105 16 Wheels . | . . . . . . . Hover . | . . . . . . . Flight 1992 | . . 343 948 499 12 190 Fastest Speed 34 | 50 160 34 34 34 37 50 Average Speed 71 | 154 160 51 34 36 130 71 Slowest Speed 300 | 160 160 197 34 117 300 150 Overloaded Moves . | . . . . . . . Propulsion Burnouts . | . . . . . . . Robots Hopped 9 | . . . 5 4 . . Potential Cave-ins . | . . . . . . . Cave-ins Triggered . | . . . . . . . Exploration Rate (%) 40 | 4 87 26 96 29 7 36 Regions Visited 6 Branch Regions 2 Pre-discovered Areas . | . . . . . . . Known Exits Taken 3 | . . 1 1 1 . . Unknown Exits Taken 3 | 1 1 . . . 1 . Scrap Searched 6 | . . . 1 . . 5 Spaces Dug . | . . . . . . . Terrain Destroyed 117 | . 80 37 . . . . Melee . | . . . . . . . Projectile . | . . . . . . . AOE 117 | . 80 37 . . . . Terrain Rammed . | . . . . . . . Walls Destroyed . | . . . . . . . Machines Disabled . | . . . . . . . Actions | -11 -10 -9 -9 -8 -7 -7 --------- Run | Yrd Mat Mat Min Mat Fac Low Total 3484 | 52 503 486 1045 540 359 499 Wait 90 | . 4 1 59 11 10 5 Move 3091 | 39 465 413 937 490 269 478 Hop 9 | . . . 5 4 . . Pick Up 38 | 6 6 10 5 1 6 4 Fast Attach 26 | 6 1 . . 7 9 3 Attach 19 | . . 9 1 . 6 3 Detach 6 | . . 2 . 1 1 2 Swap 21 | 1 2 7 5 4 2 . Drop 35 | . 5 10 7 4 8 1 Fire 108 | . 20 28 26 18 13 3 Melee 37 | . . 6 . . 31 . Ram . | . . . . . . . Kick 4 | . . . . . 4 . Crush . | . . . . . . . Escape Stasis . | . . . . . . . Rewire . | . . . . . . . Trap . | . . . . . . . Miscellaneous . | . . . . . . . Route ------- -11/Scrapyard -10/Materials (discovered 4 exits: *Mat x2 / [*Min x2]) -9/Materials (discovered 2 exits: *Min / *Sto) -9/Mines (discovered 2 exits: *Mat x2) -8/Materials -7/Factory -7/Lower Caves History --------- Turn | Location | Event 15 | -11/Scrapyard | Discovered new exit (range 16) 78 | -11/Scrapyard | Entered Materials 238 | -10/Materials | Discovered new exit (range 8) 292 | -10/Materials | Discovered new exit (range 16) 307 | -10/Materials | Build established: Mutant 448 | -10/Materials | Discovered new exit (range 6) 821 | -10/Materials | Discovered new exit (range 15) 891 | -10/Materials | Entered another Materials area 891 | -9/Materials | Evolved 2 slots: Power x1, Propulsion x1 1185 | -9/Materials | Discovered new exit (range 5) 1187 | -9/Materials | Identified exit to Storage 1201 | -9/Materials | Discovered new exit (range 13) 1210 | -9/Materials | Identified exit to Mines 1210 | -9/Materials | Entered Mines 1211 | -9/Mines | Met a Derelict testing a Signal Generator 1213 | -9/Mines | Found Signal Generator 1231 | -9/Mines | Learned 2 Materials zone layouts 1232 | -9/Mines | Discovered new exit (range 10) 1236 | -9/Mines | Identified exit to Materials 1249 | -9/Mines | Joined a pair of Derelicts in attacking an 0b10 outpost 1274 | -9/Mines | Discovered exit to Materials (range 4) 1323 | -9/Mines | Build established: Scavenger-Mutant 1621 | -9/Mines | Found a Scrap Suit stashed away for nefarious purposes 1623 | -9/Mines | Found Scrap Suit 1653 | -9/Mines | Entered Materials 1653 | -8/Materials | Evolved 2 slots: Power x1, Utility x1 1894 | -8/Materials | Discovered new exit (range 6) 1896 | -8/Materials | Identified exit to Factory 1896 | -8/Materials | Entered Factory 1896 | -7/Factory | Evolved 2 slots: Propulsion x1, Utility x1 1924 | -7/Factory | Lost 7 parts (1p5n1w) 2132 | -7/Factory | Build established: Mutant 2340 | -7/Factory | Lost 8 parts (3p2n1u2w) 2379 | -7/Factory | Discovered new exit (range 9) 2398 | -7/Factory | Entered Lower Caves 2423 | -7/Lower Caves | Core integrity fell below 50% 2444 | -7/Lower Caves | Lost 5 parts (1p4n) 2462 | -7/Lower Caves | Core integrity fell below 20% 2464 | -7/Lower Caves | Encountered a Warlord checkpoint 2552 | -7/Lower Caves | Spotted B-75 Beast 2762 | -7/Lower Caves | Destroyed by B-75 Beast with Heavy Plasma Cannon Last Messages --------------- Found Mak. Flight Unit. Found Autogun. Found 67 Matter. Acquired Mak. Flight Unit. Acquired Autogun. Searching scrap... Found Hardlight Generator. Found 56 Matter. Searching scrap... Found Remote Datajack. Found Imp. Datajack. Found Lrg. Storage Unit. Found Com. Battery. Found 31 Matter. Acquired Imp. Datajack. Acquired 10 matter. Dropped Heat Sink. System corrupted: Heat flow error (+160). System corrupted: Substantial component data lost. Map ----- +----------------------------------------------------+ | ?????????????????????????????????????????????????? | | ?????????????????????????????????????????????????? | | ?????????????????????????????????????????????????? | | ?????????????????????????????????????????????????? | | ?????????????????????????????????????????######??? | | ????????????????????????????????????????## #?## | | ??????????????????????????????????##?#### ### | | ??????????????????????????????????# # | | ????????????????????? ????????????# # # | | ??????????????????## ???????????# ?## #### | | ??????????????????# ??????????# ## #??# | | ??????????????????# ??????????#### #### | | ??????????????##### BB ??????????# ## # | | ????????????? BB ??????????# ### # | | ?????????????? ???####### ### ## | | ????????????????# #### ##? | | ?????????????????# ##?# | | ??????????????????# #### #??# | | ??????????????????# ## #??###### ## #??# | | ?????????????????## ??#####???##### ## #??# | | ?????????????????# ##???????## ##?# | | ?????????????????# ######### ### | | ??????????????#### ## | | ??????????????# # | | ??????????????# ### % ###### # | | ??????????????????# @ #???## ## | | ??????????????????# #??## ##%##% #? | | ??????????????????## ## ; #??# # #? | | ???????????????????###?# ###??# ## | | ???????????????????????# #????## % #? | | ??????????????????????? #?????# #?##### | | ??????????????????????## $?????# #?????? | | ???????????????????????####?????## #?????? | | ????????????????????????????????## #?????? | | ????????????????????????????????# ####?????? | | ????????????????????????????????# #????????? | | ????????????????????????????????## ##????????? | | ?????????????????????????????????### ##?????????? | | ???????????????????????????????????####??????????? | | ?????????????????????????????????????????????????? | | ?????????????????????????????????????????????????? | | ?????????????????????????????????????????????????? | | ?????????????????????????????????????????????????? | | ?????????????????????????????????????????????????? | | ?????????????????????????????????????????????????? | | ?????????????????????????????????????????????????? | | ?????????????????????????????????????????????????? | | ?????????????????????????????????????????????????? | | ?????????????????????????????????????????????????? | | ?????????????????????????????????????????????????? | +----------------------------------------------------+ Best States ------------- Heat Dissipation 44 Energy Generation 36 Energy Capacity 500 Matter Stores 300 Matter Capacity 300 Sight Range 16 Terrain Scan Density 10 Evasion (%) 63 Recoil Reduction 3 Item Schematics ----------------- None Robot Schematics ------------------ None Fabricated ------------ Nothing Repaired ---------- Nothing Studied --------- None Alien Tech Used ----------------- None Achievements -------------- Loot Pinata Sprinter Challenges ------------ None Game ------ Seed HeatBladeCanceller Manual? 0 Play Time 00:43:17 Cumulative 5.6 hours Start 2026.08.30 @ 14:43:53 End 2026.08.30 @ 15:24:32 Sessions 1 Manual Loads 0 Difficulty Rogue Special Mode None Game No. 11 Rogue 11 Adventurer 0 Explorer 0 Win Type - Total 0 Types 0/0/0/0/0/0/0/0/0/0 Lore% 12 Gallery% 9 Achievement% 11 Wizard Run 0 Options --------- Layout 1 ASCII 0 Keyboard 0 Movement Numpad Keybinds 0 Fullscreen 2 Font 24/X11 Map View 50x35 Zoom Use 0% Tactical HUD 0 Map Filters NONE Filters NONE Steam 1 RUN: 167039a4-b5d6-491a-87ca-1741ec28daeb